[Event "Early-Titled-Tuesday-Blitz-June-18-2024"]
[Site "Chess.com"]
[Date "2024.06.18"]
[Round "1"]
[White "The_Sherman_Variation"]
[Black "GambitGiesbergen"]
[Result "0-1"]
[WhiteElo "2646"]
[BlackElo "2370"]
[TimeControl "180+1"]
[EndTime "8:08:35 PDT"]
[Termination "GambitGiesbergen won by resignation"]

1. b3 {[%clk 0:03:00.9]} 1... e5 {[%clk 0:02:58.1]} 2. Bb2 {[%clk 0:03:00.6]}
2... Nc6 {[%clk 0:02:59]} 3. e4 {[%clk 0:02:59.9]} 3... Bc5 {[%clk 0:02:52.7]}
4. Nf3 {[%clk 0:02:58]} 4... Nf6 {[%clk 0:02:51.1]} 5. Be2 {[%clk 0:02:44.8]}
5... Nxe4 {[%clk 0:02:45.5]} 6. O-O {[%clk 0:02:44.7]} 6... d6 {[%clk 0:02:29]}
7. d4 {[%clk 0:02:44.6]} 7... exd4 {[%clk 0:02:26.8]} 8. Nxd4 {[%clk 0:02:45]}
8... Nxd4 {[%clk 0:02:10.9]} 9. Bxd4 {[%clk 0:02:45.9]} 9... O-O {[%clk
0:02:11]} 10. Bf3 {[%clk 0:02:44]} 10... Bf5 {[%clk 0:02:06.6]} 11. Nc3 {[%clk
0:02:38]} 11... Bxd4 {[%clk 0:02:01.2]} 12. Qxd4 {[%clk 0:02:36.7]} 12... Nxc3
{[%clk 0:02:01.7]} 13. Qxc3 {[%clk 0:02:37.6]} 13... c6 {[%clk 0:02:00.9]} 14.
Rad1 {[%clk 0:02:38]} 14... Qc7 {[%clk 0:01:55.9]} 15. Qd2 {[%clk 0:02:37.7]}
15... d5 {[%clk 0:01:55.2]} 16. c3 {[%clk 0:02:38]} 16... Rfe8 {[%clk
0:01:54.5]} 17. Rfe1 {[%clk 0:02:37.1]} 17... Rad8 {[%clk 0:01:38.5]} 18. Qd4
{[%clk 0:02:35.4]} 18... b6 {[%clk 0:01:29.8]} 19. h3 {[%clk 0:02:33.6]} 19...
h6 {[%clk 0:01:24.2]} 20. Qh4 {[%clk 0:02:26.4]} 20... Bg6 {[%clk 0:01:20.5]}
21. c4 {[%clk 0:02:21.4]} 21... dxc4 {[%clk 0:01:17.4]} 22. Qxc4 {[%clk
0:02:18.1]} 22... Rxe1+ {[%clk 0:01:14.7]} 23. Rxe1 {[%clk 0:02:19]} 23... c5
{[%clk 0:01:04.8]} 24. g3 {[%clk 0:02:13.2]} 24... Kh7 {[%clk 0:00:59.6]} 25.
Kg2 {[%clk 0:02:10.2]} 25... Bf5 {[%clk 0:00:57.8]} 26. Re3 {[%clk 0:01:59.8]}
26... Kh8 {[%clk 0:00:56]} 27. Qe2 {[%clk 0:01:55.6]} 27... Be6 {[%clk
0:00:53.6]} 28. h4 {[%clk 0:01:52.9]} 28... Qd7 {[%clk 0:00:52.4]} 29. Kh2
{[%clk 0:01:46.4]} 29... Qd2 {[%clk 0:00:40.4]} 30. Qf1 {[%clk 0:01:37.3]} 30...
Qxa2 {[%clk 0:00:37.7]} 31. Kg2 {[%clk 0:01:29.3]} 31... Rd2 {[%clk 0:00:36.8]}
32. Qe1 {[%clk 0:01:26.5]} 32... Qc2 {[%clk 0:00:28]} 33. Be4 {[%clk 0:01:18.4]}
33... Qd1 {[%clk 0:00:27.8]} 34. Qxd1 {[%clk 0:01:13]} 34... Rxd1 {[%clk
0:00:28.7]} 35. f4 {[%clk 0:01:13.4]} 35... g6 {[%clk 0:00:18.7]} 36. h5 {[%clk
0:01:11.4]} 36... Bd5 {[%clk 0:00:11.5]} 37. Bxd5 {[%clk 0:01:10.5]} 37... Rxd5
{[%clk 0:00:12.4]} 38. hxg6 {[%clk 0:01:10.5]} 38... fxg6 {[%clk 0:00:13.3]} 39.
Re8+ {[%clk 0:01:10.8]} 39... Kg7 {[%clk 0:00:12.7]} 40. Re7+ {[%clk 0:01:11.7]}
40... Kf6 {[%clk 0:00:13.4]} 41. Rxa7 {[%clk 0:01:12.6]} 41... Rd3 {[%clk
0:00:12.6]} 42. Ra3 {[%clk 0:01:10.4]} 42... Kf5 {[%clk 0:00:11]} 43. Kh3 {[%clk
0:01:07.6]} 43... g5 {[%clk 0:00:09.1]} 44. fxg5 {[%clk 0:01:07.6]} 44... hxg5
{[%clk 0:00:10]} 45. Kg2 {[%clk 0:01:07.1]} 45... Kg4 {[%clk 0:00:10.2]} 46.
Ra4+ {[%clk 0:01:07.6]} 46... Kf5 {[%clk 0:00:10.5]} 47. g4+ {[%clk 0:01:07.5]}
47... Ke5 {[%clk 0:00:10]} 48. Ra3 {[%clk 0:01:05.5]} 48... Kf4 {[%clk
0:00:07.9]} 49. Ra4+ {[%clk 0:01:01.5]} 49... Rd4 {[%clk 0:00:08.2]} 50. Ra8
{[%clk 0:00:48.9]} 50... Rd2+ {[%clk 0:00:06.1]} 51. Kf1 {[%clk 0:00:48.6]}
51... Kxg4 {[%clk 0:00:06.5]} 52. Rb8 {[%clk 0:00:46]} 52... Rd6 {[%clk
0:00:06.7]} 53. Kf2 {[%clk 0:00:45.3]} 53... Kf4 {[%clk 0:00:05.5]} 54. Rf8+
{[%clk 0:00:44.8]} 54... Ke4 {[%clk 0:00:05.9]} 55. Re8+ {[%clk 0:00:44.5]}
55... Kd4 {[%clk 0:00:05]} 56. Rg8 {[%clk 0:00:39.1]} 56... Rd5 {[%clk
0:00:05.3]} 57. Rg6 {[%clk 0:00:34.8]} 57... b5 {[%clk 0:00:04.5]} 58. Re6
{[%clk 0:00:32.6]} 58... Kc3 {[%clk 0:00:03.2]} 59. Re3+ {[%clk 0:00:32]} 59...
Kb4 {[%clk 0:00:03.7]} 60. Ke2 {[%clk 0:00:31.6]} 60... c4 {[%clk 0:00:04.2]}
61. bxc4 {[%clk 0:00:31.2]} 61... bxc4 {[%clk 0:00:05.1]} 62. Re8 {[%clk
0:00:29.9]} 62... Kb3 {[%clk 0:00:03.4]} 63. Rb8+ {[%clk 0:00:29.8]} 63... Kc2
{[%clk 0:00:03.8]} 64. Rg8 {[%clk 0:00:30.4]} 64... c3 {[%clk 0:00:03.9]} 65.
Rb8 {[%clk 0:00:30.7]} 65... Kc1 {[%clk 0:00:04.3]} 66. Rb4 {[%clk 0:00:29.5]}
66... c2 {[%clk 0:00:04.2]} 67. Rb8 {[%clk 0:00:25.9]} 67... g4 {[%clk
0:00:04.3]} 68. Rb4 {[%clk 0:00:25.2]} 68... g3 {[%clk 0:00:03.8]} 69. Rg4
{[%clk 0:00:25.2]} 69... g2 {[%clk 0:00:03.2]} 70. Rxg2 {[%clk 0:00:25.2]} 70...
Rd2+ {[%clk 0:00:03.8]} 71. Ke3 {[%clk 0:00:24.9]} 71... Rxg2 {[%clk 0:00:04.7]}
0-1

[Event "Early-Titled-Tuesday-Blitz-June-18-2024"]
[Site "Chess.com"]
[Date "2024.06.18"]
[Round "1"]
[White "unkiyto"]
[Black "ural58"]
[Result "0-1"]
[WhiteElo "2712"]
[BlackElo "2428"]
[TimeControl "180+1"]
[EndTime "8:08:38 PDT"]
[Termination "ural58 won by resignation"]

1. e4 {[%clk 0:02:59.6]} 1... d5 {[%clk 0:02:54.8]} 2. exd5 {[%clk 0:02:59.1]}
2... Qxd5 {[%clk 0:02:53.5]} 3. Nc3 {[%clk 0:02:59.2]} 3... Qd6 {[%clk
0:02:51.6]} 4. d4 {[%clk 0:02:57.8]} 4... c6 {[%clk 0:02:51]} 5. Nf3 {[%clk
0:02:57.7]} 5... Bf5 {[%clk 0:02:50]} 6. Bc4 {[%clk 0:02:52.1]} 6... e6 {[%clk
0:02:36]} 7. O-O {[%clk 0:02:51.4]} 7... Nf6 {[%clk 0:02:34.9]} 8. Bg5 {[%clk
0:02:48.8]} 8... Be7 {[%clk 0:02:33.8]} 9. Bh4 {[%clk 0:02:48.8]} 9... O-O
{[%clk 0:02:32.3]} 10. Bg3 {[%clk 0:02:49.1]} 10... Qd8 {[%clk 0:02:32.1]} 11.
Bd3 {[%clk 0:02:44.6]} 11... Bxd3 {[%clk 0:02:29.5]} 12. Qxd3 {[%clk 0:02:43.7]}
12... Nbd7 {[%clk 0:02:28.2]} 13. Ne4 {[%clk 0:02:42]} 13... Nxe4 {[%clk
0:02:27.5]} 14. Qxe4 {[%clk 0:02:42.9]} 14... Nf6 {[%clk 0:02:26.3]} 15. Qd3
{[%clk 0:02:40.3]} 15... Bd6 {[%clk 0:02:26.1]} 16. c3 {[%clk 0:02:32.2]} 16...
Bxg3 {[%clk 0:02:25.2]} 17. hxg3 {[%clk 0:02:33.1]} 17... Qd5 {[%clk 0:02:22.6]}
18. Qe3 {[%clk 0:02:25.2]} 18... h6 {[%clk 0:02:19]} 19. Ne5 {[%clk 0:02:16.1]}
19... Nd7 {[%clk 0:02:16.1]} 20. f4 {[%clk 0:02:12.7]} 20... Rad8 {[%clk
0:02:13.3]} 21. g4 {[%clk 0:01:52.3]} 21... f6 {[%clk 0:02:06]} 22. Ng6 {[%clk
0:01:43.2]} 22... Rfe8 {[%clk 0:02:06]} 23. Rae1 {[%clk 0:01:29.2]} 23... c5
{[%clk 0:01:56.8]} 24. f5 {[%clk 0:01:16.7]} 24... e5 {[%clk 0:01:48.2]} 25.
dxc5 {[%clk 0:00:48.7]} 25... Qxc5 {[%clk 0:01:44.2]} 26. Qxc5 {[%clk
0:00:37.3]} 26... Nxc5 {[%clk 0:01:44]} 27. Rd1 {[%clk 0:00:37.2]} 27... Kf7
{[%clk 0:01:44]} 28. Kh2 {[%clk 0:00:31.3]} 28... a5 {[%clk 0:01:23.7]} 29. Kg3
{[%clk 0:00:29.3]} 29... b6 {[%clk 0:01:21.8]} 30. Kf3 {[%clk 0:00:28.6]} 30...
Ne6 {[%clk 0:01:07.9]} 31. Nxe5+ {[%clk 0:00:23.2]} 31... fxe5 {[%clk
0:01:07.5]} 32. fxe6+ {[%clk 0:00:22.6]} 32... Kxe6 {[%clk 0:01:07.7]} 33. Rxd8
{[%clk 0:00:22]} 33... Rxd8 {[%clk 0:01:07.3]} 34. Ke3 {[%clk 0:00:22.5]} 34...
b5 {[%clk 0:01:01.4]} 35. b3 {[%clk 0:00:17]} 35... a4 {[%clk 0:00:59.8]} 36.
Rb1 {[%clk 0:00:15.4]} 36... Rc8 {[%clk 0:00:44.4]} 37. Kd3 {[%clk 0:00:14.7]}
37... Rf8 {[%clk 0:00:39.8]} 38. bxa4 {[%clk 0:00:13.5]} 38... bxa4 {[%clk
0:00:39.6]} 39. Rb6+ {[%clk 0:00:12.8]} 39... Kd5 {[%clk 0:00:38.5]} 40. Rb5+
{[%clk 0:00:10.8]} 40... Kd6 {[%clk 0:00:38]} 41. Rb2 {[%clk 0:00:08.8]} 41...
Rf4 {[%clk 0:00:37.1]} 42. Rb6+ {[%clk 0:00:08.5]} 42... Ke7 {[%clk 0:00:32.3]}
43. Rb5 {[%clk 0:00:06.8]} 43... Rxg4 {[%clk 0:00:31.3]} 44. Rxe5+ {[%clk
0:00:06.8]} 44... Kd6 {[%clk 0:00:30.5]} 45. Re2 {[%clk 0:00:07.7]} 45... Kd5
{[%clk 0:00:29.2]} 46. Rf2 {[%clk 0:00:07.2]} 46... Rg3+ {[%clk 0:00:28.6]} 47.
Kd2 {[%clk 0:00:07.7]} 47... g5 {[%clk 0:00:26.9]} 48. Rf5+ {[%clk 0:00:07.8]}
48... Kc4 {[%clk 0:00:26.5]} 49. Rf2 {[%clk 0:00:08.7]} 49... h5 {[%clk
0:00:25.8]} 50. Re2 {[%clk 0:00:08.2]} 50... Rd3+ {[%clk 0:00:24.9]} 51. Ke1
{[%clk 0:00:07.5]} 51... Kxc3 {[%clk 0:00:22.8]} 52. Re5 {[%clk 0:00:07.6]}
52... Rg3 {[%clk 0:00:22.7]} 53. Kf2 {[%clk 0:00:07.3]} 53... h4 {[%clk
0:00:21]} 54. Ra5 {[%clk 0:00:03.7]} 54... Kb4 {[%clk 0:00:20.4]} 55. Ra8 {[%clk
0:00:03.6]} 55... Ra3 {[%clk 0:00:20]} 56. Rg8 {[%clk 0:00:02.8]} 56... Rg3
{[%clk 0:00:18.8]} 57. Ra8 {[%clk 0:00:02.4]} 57... a3 {[%clk 0:00:18.5]} 58.
Rb8+ {[%clk 0:00:02.4]} 58... Kc3 {[%clk 0:00:17.3]} 59. Rb3+ {[%clk 0:00:02.6]}
59... Kc2 {[%clk 0:00:17.8]} 60. Rb8 {[%clk 0:00:02.6]} 60... Kc1 {[%clk
0:00:16.6]} 61. Rb7 {[%clk 0:00:02]} 61... Rg4 {[%clk 0:00:16.4]} 62. Rb6 {[%clk
0:00:02.1]} 62... Rf4+ {[%clk 0:00:15.7]} 63. Kg1 {[%clk 0:00:01.6]} 63... Rc4
{[%clk 0:00:15.3]} 64. Kh2 {[%clk 0:00:01.6]} 64... g4 {[%clk 0:00:15.4]} 65.
Rg6 {[%clk 0:00:01]} 65... Kb2 {[%clk 0:00:14.6]} 66. Rxg4 {[%clk 0:00:01.2]}
66... Rxg4 {[%clk 0:00:13.8]} 67. Kh3 {[%clk 0:00:02.1]} 67... Rg3+ {[%clk
0:00:13.9]} 68. Kxh4 {[%clk 0:00:03]} 68... Rxg2 {[%clk 0:00:14.1]} 69. Kh3
{[%clk 0:00:03.9]} 69... Rg8 {[%clk 0:00:14.2]} 70. Kh2 {[%clk 0:00:04.8]} 70...
Kxa2 {[%clk 0:00:14.4]} 0-1

[Event "Early-Titled-Tuesday-Blitz-June-18-2024"]
[Site "Chess.com"]
[Date "2024.06.18"]
[Round "1"]
[White "Tol_Tol"]
[Black "AldokhinIvan"]
[Result "1-0"]
[WhiteElo "2368"]
[BlackElo "2645"]
[TimeControl "180+1"]
[EndTime "8:08:41 PDT"]
[Termination "Tol_Tol won on time"]

1. d4 {[%clk 0:02:59]} 1... Nf6 {[%clk 0:02:58.6]} 2. c4 {[%clk 0:02:59.4]} 2...
g6 {[%clk 0:02:58.9]} 3. Nc3 {[%clk 0:02:59.8]} 3... Bg7 {[%clk 0:02:59.5]} 4.
e4 {[%clk 0:02:59.8]} 4... d6 {[%clk 0:03:00]} 5. f3 {[%clk 0:03:00.3]} 5... O-O
{[%clk 0:03:00.6]} 6. Be3 {[%clk 0:03:00.9]} 6... c6 {[%clk 0:03:01.1]} 7. Bd3
{[%clk 0:03:00.3]} 7... e5 {[%clk 0:02:59.3]} 8. Nge2 {[%clk 0:03:00.3]} 8...
Na6 {[%clk 0:02:59.6]} 9. O-O {[%clk 0:02:57.6]} 9... Qe7 {[%clk 0:02:59.6]} 10.
a3 {[%clk 0:02:53.9]} 10... exd4 {[%clk 0:02:54.6]} 11. Bxd4 {[%clk 0:02:48.9]}
11... Nc5 {[%clk 0:02:53]} 12. b4 {[%clk 0:02:44.7]} 12... Nxd3 {[%clk
0:02:45.4]} 13. Qxd3 {[%clk 0:02:44.7]} 13... a6 {[%clk 0:02:37.4]} 14. c5
{[%clk 0:02:39.5]} 14... Rd8 {[%clk 0:02:27.6]} 15. Qe3 {[%clk 0:02:39.4]} 15...
dxc5 {[%clk 0:02:20.5]} 16. Bxc5 {[%clk 0:02:39.4]} 16... Qe6 {[%clk 0:02:18.1]}
17. Rfd1 {[%clk 0:02:23.2]} 17... Bd7 {[%clk 0:02:08.9]} 18. Bb6 {[%clk
0:02:20.5]} 18... Re8 {[%clk 0:01:56]} 19. Na4 {[%clk 0:02:15.9]} 19... Bc8
{[%clk 0:01:42.4]} 20. Nc5 {[%clk 0:02:12.5]} 20... Qe5 {[%clk 0:01:42.2]} 21.
Nd3 {[%clk 0:02:07.8]} 21... Qh5 {[%clk 0:01:13.3]} 22. Bd4 {[%clk 0:02:04.8]}
22... a5 {[%clk 0:00:55.3]} 23. Ng3 {[%clk 0:01:48.7]} 23... Qh4 {[%clk
0:00:52.3]} 24. Nc5 {[%clk 0:01:33.9]} 24... axb4 {[%clk 0:00:40.9]} 25. axb4
{[%clk 0:01:33.8]} 25... Rxa1 {[%clk 0:00:41.5]} 26. Bxa1 {[%clk 0:01:30.2]}
26... b6 {[%clk 0:00:30.3]} 27. Nb3 {[%clk 0:01:26.3]} 27... Be6 {[%clk
0:00:19.7]} 28. Nd4 {[%clk 0:01:21.5]} 28... Bd7 {[%clk 0:00:19.5]} 29. Nde2
{[%clk 0:01:12.5]} 29... b5 {[%clk 0:00:15.9]} 30. Bd4 {[%clk 0:01:07.2]} 30...
Be6 {[%clk 0:00:12.4]} 31. Qc3 {[%clk 0:01:05.8]} 31... Nh5 {[%clk 0:00:09.9]}
32. Bxg7 {[%clk 0:01:05]} 32... Nxg7 {[%clk 0:00:10.8]} 33. Qxc6 {[%clk
0:01:01.6]} 33... Qg5 {[%clk 0:00:08.2]} 34. f4 {[%clk 0:00:58.4]} 34... Qe7
{[%clk 0:00:08]} 35. Qxb5 {[%clk 0:00:54.4]} 35... Bg4 {[%clk 0:00:08.1]} 36. e5
{[%clk 0:00:48.4]} 36... h5 {[%clk 0:00:07.6]} 37. h3 {[%clk 0:00:44.6]} 37...
Bxe2 {[%clk 0:00:03]} 38. Qxe2 {[%clk 0:00:40]} 38... Ne6 {[%clk 0:00:02.5]} 39.
Ne4 {[%clk 0:00:38.7]} 39... Nxf4 {[%clk 0:00:01.3]} 40. Qa6 {[%clk 0:00:27]}
40... Qxe5 {[%clk 0:00:02.2]} 41. Nf6+ {[%clk 0:00:26.9]} 41... Kg7 {[%clk
0:00:02.3]} 42. Nxe8+ {[%clk 0:00:26.6]} 42... Qxe8 {[%clk 0:00:02.9]} 43. Qa1+
{[%clk 0:00:25.5]} 43... Kh7 {[%clk 0:00:02.6]} 44. Re1 {[%clk 0:00:22.8]} 44...
Qc6 {[%clk 0:00:03]} 45. Qb2 {[%clk 0:00:14.1]} 45... Nd3 {[%clk 0:00:01.7]} 46.
Qd2 {[%clk 0:00:05.6]} 46... Nxe1 {[%clk 0:00:02.2]} 47. Qxe1 {[%clk 0:00:06.5]}
47... Qb6+ {[%clk 0:00:02.5]} 48. Kh1 {[%clk 0:00:07]} 48... Qb5 {[%clk
0:00:02.2]} 49. Qc3 {[%clk 0:00:07]} 49... Kg8 {[%clk 0:00:02.2]} 50. Qc8+
{[%clk 0:00:06.3]} 50... Kh7 {[%clk 0:00:01.7]} 51. Qc5 {[%clk 0:00:07.2]} 51...
Qf1+ {[%clk 0:00:01.7]} 52. Kh2 {[%clk 0:00:06.6]} 52... Qf4+ {[%clk 0:00:02.3]}
53. Kh1 {[%clk 0:00:07.1]} 53... Qf1+ {[%clk 0:00:02.3]} 54. Qg1 {[%clk
0:00:07.8]} 54... Qf4 {[%clk 0:00:02.5]} 55. Qb1 {[%clk 0:00:07.1]} 55... Qb8
{[%clk 0:00:01.5]} 56. b5 {[%clk 0:00:08]} 56... Qb6 {[%clk 0:00:01.6]} 57. Qb3
{[%clk 0:00:07.9]} 57... Kg7 {[%clk 0:00:01.8]} 58. Qd5 {[%clk 0:00:07.9]} 1-0

[Event "Early-Titled-Tuesday-Blitz-June-18-2024"]
[Site "Chess.com"]
[Date "2024.06.18"]
[Round "1"]
[White "InitiatingASC"]
[Black "kids2010"]
[Result "1-0"]
[WhiteElo "2446"]
[BlackElo "2753"]
[TimeControl "180+1"]
[EndTime "8:08:42 PDT"]
[Termination "InitiatingASC won by resignation"]

1. d4 {[%clk 0:03:00.9]} 1... d5 {[%clk 0:02:58.6]} 2. c4 {[%clk 0:03:00.3]}
2... e6 {[%clk 0:02:57.2]} 3. Nc3 {[%clk 0:02:58.5]} 3... c5 {[%clk 0:02:56]} 4.
cxd5 {[%clk 0:02:56.2]} 4... cxd4 {[%clk 0:02:55.6]} 5. Qxd4 {[%clk 0:02:55.4]}
5... Nc6 {[%clk 0:02:56]} 6. Qa4 {[%clk 0:02:54.7]} 6... exd5 {[%clk 0:02:55.4]}
7. Nf3 {[%clk 0:02:53.1]} 7... d4 {[%clk 0:02:50]} 8. Nb5 {[%clk 0:02:47.1]}
8... Bd7 {[%clk 0:02:31.1]} 9. Bf4 {[%clk 0:02:46.6]} 9... Bb4+ {[%clk
0:02:28.6]} 10. Nd2 {[%clk 0:02:36]} 10... Rc8 {[%clk 0:02:17.4]} 11. Nxd4
{[%clk 0:02:28]} 11... Nf6 {[%clk 0:02:10.6]} 12. Nxc6 {[%clk 0:02:22.5]} 12...
Bxd2+ {[%clk 0:02:10.2]} 13. Bxd2 {[%clk 0:02:22.4]} 13... Bxc6 {[%clk
0:02:10.6]} 14. Qa3 {[%clk 0:02:18.5]} 14... Ne4 {[%clk 0:02:08.6]} 15. Rd1
{[%clk 0:02:14.4]} 15... Qf6 {[%clk 0:02:07]} 16. Be3 {[%clk 0:01:53.7]} 16...
a6 {[%clk 0:02:03]} 17. h4 {[%clk 0:01:45.4]} 17... h6 {[%clk 0:02:01.8]} 18.
Rh3 {[%clk 0:01:45.3]} 18... Qe6 {[%clk 0:01:56.7]} 19. Bd4 {[%clk 0:01:38.1]}
19... f6 {[%clk 0:01:54.1]} 20. Re3 {[%clk 0:01:37.8]} 20... f5 {[%clk
0:01:07.2]} 21. f3 {[%clk 0:01:35.2]} 21... f4 {[%clk 0:01:06.8]} 22. Rxe4
{[%clk 0:01:33.8]} 22... Bxe4 {[%clk 0:01:07.2]} 23. fxe4 {[%clk 0:01:33.8]}
23... Qxe4 {[%clk 0:01:07.8]} 24. Qd6 {[%clk 0:01:21.2]} 24... Rd8 {[%clk
0:00:59.2]} 25. Qe5+ {[%clk 0:01:21.2]} 25... Qxe5 {[%clk 0:00:58.2]} 26. Bxe5
{[%clk 0:01:22]} 26... Rxd1+ {[%clk 0:00:54.2]} 27. Kxd1 {[%clk 0:01:22]} 27...
O-O {[%clk 0:00:54.8]} 28. Ke1 {[%clk 0:01:13.9]} 28... g5 {[%clk 0:00:53.5]}
29. hxg5 {[%clk 0:01:13.5]} 29... hxg5 {[%clk 0:00:54.4]} 30. g3 {[%clk
0:01:14]} 30... f3 {[%clk 0:00:41.8]} 31. Bd4 {[%clk 0:01:09.2]} 31... Kh7
{[%clk 0:00:34.5]} 32. Kf2 {[%clk 0:00:56.1]} 32... fxe2+ {[%clk 0:00:31.8]} 33.
Kxe2 {[%clk 0:00:56.4]} 33... Kg6 {[%clk 0:00:32.4]} 34. Bg2 {[%clk 0:00:55.1]}
34... Re8+ {[%clk 0:00:33.3]} 35. Kd3 {[%clk 0:00:54]} 35... Re7 {[%clk
0:00:34.2]} 36. Be4+ {[%clk 0:00:54.1]} 36... Kh5 {[%clk 0:00:34.5]} 37. Bf5
{[%clk 0:00:52]} 37... g4 {[%clk 0:00:30.9]} 38. Be4 {[%clk 0:00:50]} 38... Rf7
{[%clk 0:00:29.9]} 39. Be3 {[%clk 0:00:47.9]} 39... Rd7+ {[%clk 0:00:28.6]} 40.
Kc4 {[%clk 0:00:45.6]} 40... Re7 {[%clk 0:00:29]} 41. Kd5 {[%clk 0:00:44.4]}
41... Rd7+ {[%clk 0:00:29.9]} 42. Ke6 {[%clk 0:00:42.7]} 42... Rd1 {[%clk
0:00:29.1]} 43. Bf4 {[%clk 0:00:39.7]} 43... Re1 {[%clk 0:00:27.7]} 44. Kf5
{[%clk 0:00:39.8]} 44... Re2 {[%clk 0:00:28.2]} 45. Bxb7 {[%clk 0:00:37.2]}
45... Rxb2 {[%clk 0:00:27.1]} 46. Bxa6 {[%clk 0:00:34.3]} 46... Rxa2 {[%clk
0:00:26.9]} 47. Bc4 {[%clk 0:00:34.2]} 47... Ra5+ {[%clk 0:00:27.3]} 48. Ke4
{[%clk 0:00:33]} 48... Ra4 {[%clk 0:00:27.4]} 49. Kd4 {[%clk 0:00:33.7]} 49...
Rb4 {[%clk 0:00:27.7]} 50. Kc5 {[%clk 0:00:33.3]} 50... Rb7 {[%clk 0:00:25.4]}
51. Kc6 {[%clk 0:00:32.4]} 51... Ra7 {[%clk 0:00:22.9]} 52. Be6 {[%clk
0:00:31.5]} 52... Ra6+ {[%clk 0:00:21.2]} 53. Kd7 {[%clk 0:00:31.8]} 53... Ra7+
{[%clk 0:00:20.7]} 54. Ke8 {[%clk 0:00:31.8]} 54... Kg6 {[%clk 0:00:20.4]} 55.
Bxg4 {[%clk 0:00:31.4]} 55... Kf6 {[%clk 0:00:21.3]} 56. Kd8 {[%clk 0:00:31.1]}
56... Ra4 {[%clk 0:00:19]} 57. Kc7 {[%clk 0:00:30.1]} 57... Ra2 {[%clk
0:00:17.9]} 58. Kc6 {[%clk 0:00:28.9]} 58... Rh2 {[%clk 0:00:18.8]} 59. Kd5
{[%clk 0:00:28.9]} 59... Kg6 {[%clk 0:00:19.7]} 60. Ke4 {[%clk 0:00:29.3]} 60...
Kf6 {[%clk 0:00:20.6]} 61. Kf3 {[%clk 0:00:29.5]} 61... Rh8 {[%clk 0:00:19.4]}
62. Be3 {[%clk 0:00:28.3]} 62... Re8 {[%clk 0:00:19.7]} 63. Kf4 {[%clk
0:00:28.3]} 63... Kg6 {[%clk 0:00:20.2]} 64. Bf5+ {[%clk 0:00:28.2]} 64... Kf6
{[%clk 0:00:19.8]} 65. g4 {[%clk 0:00:28.9]} 65... Kg7 {[%clk 0:00:20.4]} 66.
Bd4+ {[%clk 0:00:29.1]} 66... Kf8 {[%clk 0:00:21.1]} 67. g5 {[%clk 0:00:28.9]}
67... Rd8 {[%clk 0:00:22]} 68. Bf6 {[%clk 0:00:28.8]} 68... Rd1 {[%clk
0:00:22.9]} 69. g6 {[%clk 0:00:28.5]} 69... Rf1+ {[%clk 0:00:23.5]} 70. Kg5
{[%clk 0:00:28.9]} 70... Rg1+ {[%clk 0:00:24]} 71. Kh6 {[%clk 0:00:28.3]} 71...
Rh1+ {[%clk 0:00:24.4]} 72. Kg5 {[%clk 0:00:28.8]} 72... Rg1+ {[%clk 0:00:25.3]}
73. Bg4 {[%clk 0:00:29]} 73... Rg2 {[%clk 0:00:23.8]} 74. Be5 {[%clk 0:00:28.4]}
74... Rg1 {[%clk 0:00:23.5]} 75. Kf5 {[%clk 0:00:28.5]} 75... Rf1+ {[%clk
0:00:23.5]} 76. Ke6 {[%clk 0:00:28.4]} 76... Rg1 {[%clk 0:00:23.9]} 77. Bf5
{[%clk 0:00:29.1]} 77... Rg2 {[%clk 0:00:23.3]} 78. Kf6 {[%clk 0:00:27.9]} 78...
Rf2 {[%clk 0:00:21.7]} 79. Bd6+ {[%clk 0:00:26]} 79... Kg8 {[%clk 0:00:20.8]}
80. Bc5 {[%clk 0:00:25.4]} 80... Rf1 {[%clk 0:00:20.6]} 81. Kg5 {[%clk
0:00:23.3]} 81... Re1 {[%clk 0:00:19.1]} 82. Bd4 {[%clk 0:00:21.9]} 82... Re2
{[%clk 0:00:19.4]} 83. Kf6 {[%clk 0:00:21.8]} 83... Re1 {[%clk 0:00:18.7]} 84.
Be6+ {[%clk 0:00:22.1]} 1-0